[Event "Titled Tuesday Blitz March 28 Early 2023"]
[White "Jia, Haoxiang"]
[Black "Rakhmanov, Aleksandr"]
[WhiteFideId "8602999"]
[BlackFideId "4173708"]
[WhiteElo "2596"]
[BlackElo "2530"]
[Result "1/2-1/2"]
[Round "06"]
[TimeControl "180+2"]
[Date "2023.03.28"]
[WhiteClock "0:00:38"]
[BlackClock "0:00:07"]

1. d4 {[%clk 0:03:00]}  Nf6 {[%clk 0:01:16]} 2. c4 {[%clk 0:02:59]}  d6 {[%clk 0:01:16]} 3. g3 {[%clk 0:02:59]}  e5 {[%clk 0:01:15]} 4. Bg2 {[%clk 0:02:57]}  exd4 {[%clk 0:01:13]} 5. Qxd4 {[%clk 0:02:58]}  Nc6 {[%clk 0:01:13]} 6. Qd1 {[%clk 0:02:57]}  Be6 {[%clk 0:01:13]} 7. b3 {[%clk 0:02:55]}  d5 {[%clk 0:01:11]} 8. cxd5 {[%clk 0:02:54]}  Bb4+ {[%clk 0:01:02]} 9. Bd2 {[%clk 0:02:53]}  Bxd5 {[%clk 0:01:03]} 10. Nf3 {[%clk 0:02:50]}  Bc5 {[%clk 0:00:53]} 11. O-O {[%clk 0:02:47]}  Ne4 {[%clk 0:00:48]} 12. Nc3 {[%clk 0:02:28]}  O-O {[%clk 0:00:40]} 13. Nxd5 {[%clk 0:02:19]}  Qxd5 {[%clk 0:00:41]} 14. Ng5 {[%clk 0:02:19]}  Qxd2 {[%clk 0:00:32]} 15. Nxe4 {[%clk 0:02:11]}  Qxd1 {[%clk 0:00:26]} 16. Rfxd1 {[%clk 0:02:12]}  Bb6 {[%clk 0:00:20]} 17. e3 {[%clk 0:02:11]}  Rad8 {[%clk 0:00:20]} 18. Kf1 {[%clk 0:02:09]}  Rfe8 {[%clk 0:00:14]} 19. Nc3 {[%clk 0:02:09]}  Nb4 {[%clk 0:00:13]} 20. Ke2 {[%clk 0:02:08]}  c6 {[%clk 0:00:13]} 21. a3 {[%clk 0:02:07]}  Na6 {[%clk 0:00:09]} 22. b4 {[%clk 0:02:07]}  Nc7 {[%clk 0:00:10]} 23. Na4 {[%clk 0:02:07]}  Nb5 {[%clk 0:00:10]} 24. Rxd8 {[%clk 0:02:03]}  Rxd8 {[%clk 0:00:10]} 25. Nxb6 {[%clk 0:02:03]}  axb6 {[%clk 0:00:07]} 26. a4 {[%clk 0:02:04]}  Nc3+ {[%clk 0:00:07]} 27. Kf3 {[%clk 0:02:04]}  f5 {[%clk 0:00:04]} 28. Bf1 {[%clk 0:02:03]}  Rd2 {[%clk 0:00:03]} 29. a5 {[%clk 0:02:02]}  Ne4 {[%clk 0:00:02]} 30. Kf4 {[%clk 0:02:00]}  g6 {[%clk 0:00:02]} 31. f3 {[%clk 0:01:59]}  Nc3 {[%clk 0:00:01]} 32. axb6 {[%clk 0:01:57]}  Kg7 {[%clk 0:00:02]} 33. Ra7 {[%clk 0:01:57]}  Kf6 {[%clk 0:00:02]} 34. g4 {[%clk 0:01:56]}  g5+ {[%clk 0:00:03]} 35. Kg3 {[%clk 0:01:56]}  Rd1 {[%clk 0:00:03]} 36. Bc4 {[%clk 0:01:50]}  Rg1+ {[%clk 0:00:02]} 37. Kf2 {[%clk 0:01:50]}  Rc1 {[%clk 0:00:03]} 38. Bd3 {[%clk 0:01:46]}  fxg4 {[%clk 0:00:02]} 39. fxg4 {[%clk 0:01:46]}  Nd5 {[%clk 0:00:03]} 40. Rxb7 {[%clk 0:01:45]}  Rc3 {[%clk 0:00:03]} 41. Rd7 {[%clk 0:01:37]}  Nxb6 {[%clk 0:00:03]} 42. Rd6+ {[%clk 0:01:36]}  Ke5 {[%clk 0:00:03]} 43. Rd8 {[%clk 0:01:34]}  Nd5 {[%clk 0:00:04]} 44. Bxh7 {[%clk 0:01:34]}  Nxe3 {[%clk 0:00:05]} 45. h3 {[%clk 0:01:29]}  Nd5 {[%clk 0:00:04]} 46. Re8+ {[%clk 0:01:27]}  Kd6 {[%clk 0:00:04]} 47. Rg8 {[%clk 0:01:25]}  Nf4 {[%clk 0:00:04]} 48. Bf5 {[%clk 0:01:19]}  Nxh3+ {[%clk 0:00:04]} 49. Ke2 {[%clk 0:01:20]}  Rb3 {[%clk 0:00:05]} 50. Rg6+ {[%clk 0:01:19]}  Kc7 {[%clk 0:00:03]} 51. Rg7+ {[%clk 0:01:14]}  Kb6 {[%clk 0:00:02]} 52. Bd7 {[%clk 0:01:09]}  Rxb4 {[%clk 0:00:02]} 53. Ke3 {[%clk 0:01:10]}  Kc5 {[%clk 0:00:02]} 54. Rg6 {[%clk 0:01:09]}  Rb3+ {[%clk 0:00:02]} 55. Ke4 {[%clk 0:01:08]}  Rb6 {[%clk 0:00:03]} 56. Rh6 {[%clk 0:01:07]}  Nf4 {[%clk 0:00:02]} 57. Kf5 {[%clk 0:01:06]}  Kd5 {[%clk 0:00:02]} 58. Kxg5 {[%clk 0:01:06]}  Ne2 {[%clk 0:00:02]} 59. Rh2 {[%clk 0:00:52]}  Nd4 {[%clk 0:00:02]} 60. Kh5 {[%clk 0:00:46]}  c5 {[%clk 0:00:02]} 61. g5 {[%clk 0:00:46]}  Rb8 {[%clk 0:00:02]} 62. Rf2 {[%clk 0:00:43]}  Kd6 {[%clk 0:00:01]} 63. Ba4 {[%clk 0:00:42]}  Rh8+ {[%clk 0:00:02]} 64. Kg6 {[%clk 0:00:42]}  c4 {[%clk 0:00:01]} 65. Kg7 {[%clk 0:00:41]}  Ra8 {[%clk 0:00:01]} 66. Bd1 {[%clk 0:00:41]}  Ra7+ {[%clk 0:00:02]} 67. Kh6 {[%clk 0:00:40]}  c3 {[%clk 0:00:02]} 68. g6 {[%clk 0:00:41]}  Ke5 {[%clk 0:00:02]} 69. g7 {[%clk 0:00:40]}  Ra8 {[%clk 0:00:01]} 70. Rf8 {[%clk 0:00:40]}  Ra6+ {[%clk 0:00:01]} 71. Kh7 {[%clk 0:00:40]}  Ra7 {[%clk 0:00:02]} 72. Re8+ {[%clk 0:00:38]}  Kf6 {[%clk 0:00:02]} 73. Rf8+ {[%clk 0:00:38]}  Ke5 {[%clk 0:00:02]} 74. Kh8 {[%clk 0:00:35]}  Rxg7 {[%clk 0:00:03]} 75. Kxg7 {[%clk 0:00:35]}  Ne6+ {[%clk 0:00:03]} 76. Kf7 {[%clk 0:00:36]}  Nxf8 {[%clk 0:00:04]} 77. Kxf8 {[%clk 0:00:37]}  Kd4 {[%clk 0:00:05]} 78. Bc2 {[%clk 0:00:37]}  Ke3 {[%clk 0:00:05]} 79. Ke7 {[%clk 0:00:37]}  Kd2 {[%clk 0:00:06]} 80. Ba4 {[%clk 0:00:38]}  c2 {[%clk 0:00:07]} 81. Bxc2 {[%clk 0:00:38]} 1/2-1/2


[Site "https://www.chess.com"]

[Event "Titled Tuesday Blitz March 28 Early 2023"]
[White "Kaidanov, Gregory"]
[Black "Corrales Jimenez, Fidel"]
[WhiteFideId "2008564"]
[BlackFideId "3506690"]
[WhiteElo "2547"]
[BlackElo "2541"]
[Result "1-0"]
[Round "06"]
[TimeControl "180+2"]
[Date "2023.03.28"]
[WhiteClock "0:00:46"]
[BlackClock "0:00:35"]

1. Nf3 {[%clk 0:02:59]}  d6 {[%clk 0:02:54]} 2. d4 {[%clk 0:02:58]}  b6 {[%clk 0:02:54]} 3. e4 {[%clk 0:02:57]}  Bb7 {[%clk 0:02:54]} 4. Bd3 {[%clk 0:02:58]}  e6 {[%clk 0:02:55]} 5. O-O {[%clk 0:02:57]}  h6 {[%clk 0:02:55]} 6. c4 {[%clk 0:02:57]}  Ne7 {[%clk 0:02:56]} 7. Nc3 {[%clk 0:02:58]}  g5 {[%clk 0:02:56]} 8. Re1 {[%clk 0:02:53]}  Bg7 {[%clk 0:02:56]} 9. Be3 {[%clk 0:02:51]}  Nd7 {[%clk 0:02:55]} 10. d5 {[%clk 0:02:44]}  Ne5 {[%clk 0:02:48]} 11. Nxe5 {[%clk 0:02:44]}  Bxe5 {[%clk 0:02:49]} 12. Qd2 {[%clk 0:02:44]}  Ng6 {[%clk 0:02:48]} 13. Ne2 {[%clk 0:02:39]}  Qf6 {[%clk 0:02:44]} 14. Rab1 {[%clk 0:02:34]}  Nh4 {[%clk 0:02:41]} 15. Rf1 {[%clk 0:02:20]}  g4 {[%clk 0:02:41]} 16. Bf4 {[%clk 0:02:06]}  Rg8 {[%clk 0:02:28]} 17. Bg3 {[%clk 0:02:05]}  Nf3+ {[%clk 0:02:26]} 18. gxf3 {[%clk 0:01:55]}  gxf3 {[%clk 0:02:27]} 19. Nc3 {[%clk 0:01:55]}  Qh4 {[%clk 0:01:41]} 20. Kh1 {[%clk 0:01:53]}  Qh3 {[%clk 0:01:41]} 21. Rg1 {[%clk 0:01:52]}  O-O-O {[%clk 0:01:34]} 22. Qe3 {[%clk 0:01:42]}  f5 {[%clk 0:01:27]} 23. Qxf3 {[%clk 0:01:33]}  f4 {[%clk 0:01:28]} 24. Bf1 {[%clk 0:01:31]}  Qg4 {[%clk 0:01:20]} 25. Qxg4 {[%clk 0:01:30]}  Rxg4 {[%clk 0:01:20]} 26. Bh3 {[%clk 0:01:19]}  h5 {[%clk 0:01:10]} 27. f3 {[%clk 0:01:10]}  fxg3 {[%clk 0:01:07]} 28. fxg4 {[%clk 0:01:10]}  gxh2 {[%clk 0:01:08]} 29. Rgf1 {[%clk 0:01:07]}  hxg4 {[%clk 0:01:02]} 30. Bxg4 {[%clk 0:01:07]}  Kb8 {[%clk 0:01:02]} 31. Bxe6 {[%clk 0:01:01]}  Ba6 {[%clk 0:01:02]} 32. Nb5 {[%clk 0:00:58]}  Rh8 {[%clk 0:01:00]} 33. Rf2 {[%clk 0:00:51]}  Kb7 {[%clk 0:00:59]} 34. Rf7 {[%clk 0:00:47]}  Bxb5 {[%clk 0:00:42]} 35. cxb5 {[%clk 0:00:47]}  Bd4 {[%clk 0:00:35]} 36. Rc1 {[%clk 0:00:46]}  Bc5 {[%clk 0:00:35]} 37. b4 {[%clk 0:00:46]} 1-0


[Site "https://www.chess.com"]

[Event "Titled Tuesday Blitz March 28 Early 2023"]
[White "Souleidis, Georgios"]
[Black "Warmerdam, Max"]
[WhiteFideId "4206827"]
[BlackFideId "1048104"]
[WhiteElo "2401"]
[BlackElo "2518"]
[Result "0-1"]
[Round "06"]
[TimeControl "180+2"]
[Date "2023.03.28"]
[WhiteClock "0:00:36"]
[BlackClock "0:00:55"]

1. e4 {[%clk 0:03:00]}  e5 {[%clk 0:02:58]} 2. Nc3 {[%clk 0:03:00]}  Nf6 {[%clk 0:02:58]} 3. d4 {[%clk 0:03:01]}  exd4 {[%clk 0:02:57]} 4. Qxd4 {[%clk 0:03:02]}  Nc6 {[%clk 0:02:57]} 5. Qd3 {[%clk 0:03:02]}  Bc5 {[%clk 0:02:54]} 6. Bf4 {[%clk 0:03:01]}  d6 {[%clk 0:02:55]} 7. Qd2 {[%clk 0:02:56]}  Be6 {[%clk 0:02:46]} 8. O-O-O {[%clk 0:02:50]}  O-O {[%clk 0:02:45]} 9. f3 {[%clk 0:02:50]}  a5 {[%clk 0:02:41]} 10. g4 {[%clk 0:02:44]}  a4 {[%clk 0:02:41]} 11. a3 {[%clk 0:02:41]}  Nd7 {[%clk 0:02:32]} 12. Nge2 {[%clk 0:02:32]}  Nde5 {[%clk 0:02:30]} 13. Bg2 {[%clk 0:01:54]}  b5 {[%clk 0:02:10]} 14. Nd5 {[%clk 0:01:46]}  Rb8 {[%clk 0:02:02]} 15. c3 {[%clk 0:01:18]}  Nc4 {[%clk 0:01:48]} 16. Qc2 {[%clk 0:01:18]}  N6a5 {[%clk 0:01:46]} 17. Nd4 {[%clk 0:01:04]}  Bxd4 {[%clk 0:01:21]} 18. cxd4 {[%clk 0:00:50]}  Bxd5 {[%clk 0:01:20]} 19. exd5 {[%clk 0:00:50]}  Qf6 {[%clk 0:01:13]} 20. Bd2 {[%clk 0:00:46]}  Nb3+ {[%clk 0:01:12]} 21. Kb1 {[%clk 0:00:45]}  Nbxd2+ {[%clk 0:00:57]} 22. Rxd2 {[%clk 0:00:45]}  Nxd2+ {[%clk 0:00:57]} 23. Qxd2 {[%clk 0:00:46]}  Rb7 {[%clk 0:00:57]} 24. g5 {[%clk 0:00:42]}  Qf5+ {[%clk 0:00:57]} 25. Ka1 {[%clk 0:00:40]}  b4 {[%clk 0:00:57]} 26. axb4 {[%clk 0:00:37]}  Rfb8 {[%clk 0:00:57]} 27. Re1 {[%clk 0:00:36]}  g6 {[%clk 0:00:55]} 0-1


[Site "https://www.chess.com"]

[Event "Titled Tuesday Blitz March 28 Early 2023"]
[White "Tokhirjonova, Gulrukhbegim"]
[Black "Asadli, Vugar"]
[WhiteFideId "14203626"]
[BlackFideId "13405764"]
[WhiteElo "2268"]
[BlackElo "2598"]
[Result "0-1"]
[Round "06"]
[TimeControl "180+2"]
[Date "2023.03.28"]
[WhiteClock "0:01:29"]
[BlackClock "0:02:11"]

1. e4 {[%clk 0:03:00]}  c5 {[%clk 0:02:59]} 2. Nf3 {[%clk 0:03:00]}  Nc6 {[%clk 0:02:59]} 3. Nc3 {[%clk 0:02:59]}  e5 {[%clk 0:02:54]} 4. Bc4 {[%clk 0:02:56]}  d6 {[%clk 0:02:54]} 5. d3 {[%clk 0:02:56]}  Be7 {[%clk 0:02:53]} 6. O-O {[%clk 0:02:55]}  Nf6 {[%clk 0:02:48]} 7. Ng5 {[%clk 0:02:56]}  O-O {[%clk 0:02:45]} 8. f4 {[%clk 0:02:56]}  exf4 {[%clk 0:02:40]} 9. Bxf4 {[%clk 0:02:56]}  h6 {[%clk 0:02:39]} 10. Nf3 {[%clk 0:02:54]}  Be6 {[%clk 0:02:35]} 11. Bxe6 {[%clk 0:02:37]}  fxe6 {[%clk 0:02:35]} 12. e5 {[%clk 0:02:37]}  dxe5 {[%clk 0:02:27]} 13. Nxe5 {[%clk 0:02:37]}  Qd4+ {[%clk 0:02:26]} 14. Kh1 {[%clk 0:02:21]}  Nxe5 {[%clk 0:02:26]} 15. Nb5 {[%clk 0:02:19]}  Qd7 {[%clk 0:02:26]} 16. a4 {[%clk 0:01:56]}  Nc6 {[%clk 0:02:23]} 17. Qe1 {[%clk 0:01:52]}  Nd5 {[%clk 0:02:22]} 18. Bg3 {[%clk 0:01:49]}  Rxf1+ {[%clk 0:02:21]} 19. Qxf1 {[%clk 0:01:49]}  Rf8 {[%clk 0:02:22]} 20. Qe2 {[%clk 0:01:47]}  a6 {[%clk 0:02:21]} 21. Nc3 {[%clk 0:01:42]}  Nd4 {[%clk 0:02:21]} 22. Qe4 {[%clk 0:01:38]}  Nxc2 {[%clk 0:02:16]} 23. Rc1 {[%clk 0:01:36]}  Ncb4 {[%clk 0:02:16]} 24. Re1 {[%clk 0:01:29]}  Nxc3 {[%clk 0:02:10]} 25. bxc3 {[%clk 0:01:29]}  Nxd3 {[%clk 0:02:11]} 0-1


[Site "https://www.chess.com"]

[Event "Titled Tuesday Blitz March 28 Early 2023"]
[White "Ezat, Mohamed"]
[Black "Galchenko, Matvey"]
[WhiteFideId "10600906"]
[BlackFideId "24175480"]
[WhiteElo "2386"]
[BlackElo "2404"]
[Result "0-1"]
[Round "06"]
[TimeControl "180+2"]
[Date "2023.03.28"]
[WhiteClock "0:00:02"]
[BlackClock "0:00:12"]

1. e4 {[%clk 0:02:33]}  e6 {[%clk 0:03:00]} 2. Nf3 {[%clk 0:02:33]}  d5 {[%clk 0:03:00]} 3. exd5 {[%clk 0:02:33]}  exd5 {[%clk 0:03:01]} 4. d4 {[%clk 0:02:34]}  Nf6 {[%clk 0:03:02]} 5. Nc3 {[%clk 0:02:34]}  c6 {[%clk 0:03:02]} 6. h3 {[%clk 0:02:35]}  Bd6 {[%clk 0:03:02]} 7. Bd3 {[%clk 0:02:35]}  O-O {[%clk 0:03:03]} 8. O-O {[%clk 0:02:35]}  Re8 {[%clk 0:03:00]} 9. Bg5 {[%clk 0:02:36]}  Be6 {[%clk 0:02:55]} 10. Ne2 {[%clk 0:02:34]}  h6 {[%clk 0:02:55]} 11. Bh4 {[%clk 0:02:33]}  Nbd7 {[%clk 0:02:54]} 12. c3 {[%clk 0:02:32]}  Qc7 {[%clk 0:02:53]} 13. Bg3 {[%clk 0:02:31]}  Ne4 {[%clk 0:02:52]} 14. Bxe4 {[%clk 0:02:29]}  dxe4 {[%clk 0:02:52]} 15. Bxd6 {[%clk 0:02:20]}  Qxd6 {[%clk 0:02:53]} 16. Nd2 {[%clk 0:02:20]}  f5 {[%clk 0:02:46]} 17. g3 {[%clk 0:02:13]}  Nf6 {[%clk 0:02:40]} 18. Nf4 {[%clk 0:02:13]}  Bf7 {[%clk 0:02:40]} 19. h4 {[%clk 0:02:12]}  g5 {[%clk 0:02:26]} 20. hxg5 {[%clk 0:02:12]}  hxg5 {[%clk 0:02:26]} 21. Nh3 {[%clk 0:02:13]}  e3 {[%clk 0:02:27]} 22. Nxg5 {[%clk 0:01:34]}  e2 {[%clk 0:02:11]} 23. Qc2 {[%clk 0:01:23]}  exf1=Q+ {[%clk 0:02:11]} 24. Rxf1 {[%clk 0:01:24]}  Qd7 {[%clk 0:01:23]} 25. Ndf3 {[%clk 0:01:09]}  Ng4 {[%clk 0:01:22]} 26. Nh4 {[%clk 0:01:08]}  Nh6 {[%clk 0:01:04]} 27. g4 {[%clk 0:01:00]}  Qe7 {[%clk 0:01:00]} 28. Qd2 {[%clk 0:00:50]}  Qf6 {[%clk 0:00:53]} 29. Qf4 {[%clk 0:00:47]}  Bc4 {[%clk 0:00:45]} 30. Rc1 {[%clk 0:00:37]}  Rf8 {[%clk 0:00:31]} 31. gxf5 {[%clk 0:00:16]}  Nxf5 {[%clk 0:00:27]} 32. Nhf3 {[%clk 0:00:16]}  Nh6 {[%clk 0:00:23]} 33. Qc7 {[%clk 0:00:15]}  Qg7 {[%clk 0:00:23]} 34. Qg3 {[%clk 0:00:11]}  Rf5 {[%clk 0:00:21]} 35. Re1 {[%clk 0:00:07]}  Raf8 {[%clk 0:00:14]} 36. Re3 {[%clk 0:00:03]}  Bd5 {[%clk 0:00:14]} 37. Re7 {[%clk 0:00:03]}  Qxe7 {[%clk 0:00:14]} 38. Ne6+ {[%clk 0:00:03]}  Kh8 {[%clk 0:00:14]} 39. Ne5 {[%clk 0:00:02]}  Qxe6 {[%clk 0:00:11]} 40. Ng6+ {[%clk 0:00:03]}  Kh7 {[%clk 0:00:11]} 41. Nxf8+ {[%clk 0:00:02]}  Rxf8 {[%clk 0:00:12]} 0-1


[Site "https://www.chess.com"]

[Event "Titled Tuesday Blitz March 28 Early 2023"]
[White "Drori, Saar"]
[Black "Smirnov, Pavel"]
[WhiteFideId "2812444"]
[BlackFideId "4123425"]
[WhiteElo "2322"]
[BlackElo "2519"]
[Result "0-1"]
[Round "06"]
[TimeControl "180+2"]
[Date "2023.03.28"]
[WhiteClock "0:00:04"]
[BlackClock "0:01:12"]

1. e4 {[%clk 0:03:00]}  e5 {[%clk 0:02:59]} 2. Nf3 {[%clk 0:03:00]}  Nc6 {[%clk 0:03:00]} 3. Bc4 {[%clk 0:03:00]}  Nf6 {[%clk 0:02:59]} 4. d3 {[%clk 0:03:00]}  Bc5 {[%clk 0:02:59]} 5. O-O {[%clk 0:03:00]}  O-O {[%clk 0:03:00]} 6. Re1 {[%clk 0:03:00]}  h6 {[%clk 0:02:59]} 7. a4 {[%clk 0:02:58]}  d6 {[%clk 0:02:58]} 8. h3 {[%clk 0:02:56]}  a5 {[%clk 0:02:55]} 9. Nbd2 {[%clk 0:02:56]}  Be6 {[%clk 0:02:55]} 10. c3 {[%clk 0:02:48]}  Re8 {[%clk 0:02:53]} 11. Bxe6 {[%clk 0:02:48]}  Rxe6 {[%clk 0:02:52]} 12. Nf1 {[%clk 0:02:44]}  d5 {[%clk 0:02:52]} 13. Ng3 {[%clk 0:02:27]}  Qd7 {[%clk 0:02:48]} 14. exd5 {[%clk 0:02:22]}  Nxd5 {[%clk 0:02:46]} 15. d4 {[%clk 0:01:24]}  exd4 {[%clk 0:02:45]} 16. Rxe6 {[%clk 0:01:23]}  Qxe6 {[%clk 0:02:46]} 17. cxd4 {[%clk 0:01:17]}  Bb6 {[%clk 0:02:46]} 18. Ra3 {[%clk 0:01:12]}  Re8 {[%clk 0:02:44]} 19. Kh2 {[%clk 0:00:50]}  Qf6 {[%clk 0:02:40]} 20. Be3 {[%clk 0:00:46]}  Ncb4 {[%clk 0:02:36]} 21. Ne5 {[%clk 0:00:43]}  c6 {[%clk 0:02:29]} 22. Qg4 {[%clk 0:00:42]}  Bc7 {[%clk 0:02:23]} 23. f4 {[%clk 0:00:37]}  g6 {[%clk 0:01:34]} 24. Bd2 {[%clk 0:00:35]}  Kh7 {[%clk 0:01:31]} 25. Rf3 {[%clk 0:00:29]}  Nc2 {[%clk 0:01:22]} 26. f5 {[%clk 0:00:27]}  g5 {[%clk 0:01:21]} 27. Qh5 {[%clk 0:00:16]}  Nxd4 {[%clk 0:01:17]} 28. Nxf7 {[%clk 0:00:14]}  Nxf3+ {[%clk 0:01:16]} 29. gxf3 {[%clk 0:00:14]}  Re2+ {[%clk 0:01:14]} 30. Kg1 {[%clk 0:00:14]}  Rxd2 {[%clk 0:01:12]} 31. Ne4 {[%clk 0:00:03]}  Qd4+ {[%clk 0:01:11]} 32. Kf1 {[%clk 0:00:04]}  Rd1+ {[%clk 0:01:12]} 33. Kg2 {[%clk 0:00:04]}  Ne3+ {[%clk 0:01:12]} 34. Kf2 {[%clk 0:00:04]}  Ng4+ {[%clk 0:01:11]} 35. Ke2 {[%clk 0:00:04]}  Qd3# {[%clk 0:01:12]} 0-1


[Site "https://www.chess.com"]

[Event "Titled Tuesday Blitz March 28 Early 2023"]
[White "Nagy, Gabor"]
[Black "Derjabin, Ilja"]
[WhiteFideId "737119"]
[BlackFideId "14104768"]
[WhiteElo "2510"]
[BlackElo "2309"]
[Result "1-0"]
[Round "06"]
[TimeControl "180+2"]
[Date "2023.03.28"]
[WhiteClock "0:01:16"]
[BlackClock "0:00:01"]

1. d4 {[%clk 0:02:53]}  Nf6 {[%clk 0:02:59]} 2. Nc3 {[%clk 0:02:53]}  e6 {[%clk 0:02:59]} 3. Bf4 {[%clk 0:02:48]}  d5 {[%clk 0:02:56]} 4. e3 {[%clk 0:02:45]}  Bb4 {[%clk 0:02:54]} 5. Ne2 {[%clk 0:02:46]}  Nbd7 {[%clk 0:02:52]} 6. a3 {[%clk 0:02:45]}  Bd6 {[%clk 0:02:52]} 7. h3 {[%clk 0:02:41]}  O-O {[%clk 0:02:50]} 8. g4 {[%clk 0:02:42]}  Re8 {[%clk 0:02:34]} 9. Bg2 {[%clk 0:02:39]}  a6 {[%clk 0:02:17]} 10. Qd2 {[%clk 0:02:38]}  b5 {[%clk 0:02:16]} 11. Ng3 {[%clk 0:02:34]}  Bxf4 {[%clk 0:02:14]} 12. exf4 {[%clk 0:02:34]}  Nb6 {[%clk 0:02:09]} 13. b3 {[%clk 0:02:30]}  Bb7 {[%clk 0:02:06]} 14. O-O {[%clk 0:02:29]}  Rc8 {[%clk 0:02:02]} 15. a4 {[%clk 0:02:27]}  b4 {[%clk 0:01:59]} 16. Nce2 {[%clk 0:02:28]}  a5 {[%clk 0:01:58]} 17. c3 {[%clk 0:02:26]}  bxc3 {[%clk 0:01:24]} 18. Qxc3 {[%clk 0:02:27]}  Ra8 {[%clk 0:01:24]} 19. Rfc1 {[%clk 0:02:23]}  Re7 {[%clk 0:01:24]} 20. f5 {[%clk 0:02:21]}  exf5 {[%clk 0:01:13]} 21. Nf4 {[%clk 0:02:18]}  fxg4 {[%clk 0:01:10]} 22. Nf5 {[%clk 0:02:16]}  Rd7 {[%clk 0:01:06]} 23. hxg4 {[%clk 0:02:14]}  h6 {[%clk 0:00:36]} 24. Qg3 {[%clk 0:02:10]}  Ne4 {[%clk 0:00:34]} 25. Qe3 {[%clk 0:02:08]}  Qg5 {[%clk 0:00:28]} 26. Bxe4 {[%clk 0:01:59]}  dxe4 {[%clk 0:00:29]} 27. Qg3 {[%clk 0:02:00]}  Re8 {[%clk 0:00:23]} 28. Rc5 {[%clk 0:01:59]}  e3 {[%clk 0:00:21]} 29. Nxe3 {[%clk 0:01:58]}  Qf6 {[%clk 0:00:20]} 30. Nf5 {[%clk 0:01:53]}  Rxd4 {[%clk 0:00:20]} 31. Nh5 {[%clk 0:01:52]}  Qd8 {[%clk 0:00:14]} 32. Qc3 {[%clk 0:01:45]}  Rxg4+ {[%clk 0:00:14]} 33. Nfg3 {[%clk 0:01:42]}  Nd5 {[%clk 0:00:12]} 34. Qb2 {[%clk 0:01:38]}  Nf4 {[%clk 0:00:09]} 35. Nxf4 {[%clk 0:01:39]}  Rxf4 {[%clk 0:00:10]} 36. Rac1 {[%clk 0:01:36]}  Bf3 {[%clk 0:00:09]} 37. Re5 {[%clk 0:01:35]}  Re6 {[%clk 0:00:07]} 38. Rxe6 {[%clk 0:01:33]}  fxe6 {[%clk 0:00:08]} 39. Qe5 {[%clk 0:01:34]}  Qh4 {[%clk 0:00:07]} 40. Rxc7 {[%clk 0:01:30]}  Rg4 {[%clk 0:00:07]} 41. Qxe6+ {[%clk 0:01:30]}  Kh7 {[%clk 0:00:08]} 42. Qf5+ {[%clk 0:01:31]}  Rg6 {[%clk 0:00:07]} 43. Qxf3 {[%clk 0:01:30]}  Qd4 {[%clk 0:00:06]} 44. Kg2 {[%clk 0:01:29]}  Qd6 {[%clk 0:00:05]} 45. Rb7 {[%clk 0:01:26]}  h5 {[%clk 0:00:04]} 46. Qxh5+ {[%clk 0:01:26]}  Rh6 {[%clk 0:00:03]} 47. Qf5+ {[%clk 0:01:19]}  Rg6 {[%clk 0:00:04]} 48. b4 {[%clk 0:01:17]}  Qc6+ {[%clk 0:00:03]} 49. Qf3 {[%clk 0:01:17]}  Rxg3+ {[%clk 0:00:02]} 50. fxg3 {[%clk 0:01:16]}  Qxb7 {[%clk 0:00:01]} 51. Qxb7 {[%clk 0:01:16]} 1-0


[Site "https://www.chess.com"]

[Event "Titled Tuesday Blitz March 28 Early 2023"]
[White "Samunenkov, Ihor"]
[Black "Castellanos Villela, Alejandro"]
[WhiteFideId "14187086"]
[BlackFideId "3446379"]
[WhiteElo "2457"]
[BlackElo "2102"]
[Result "1-0"]
[Round "06"]
[TimeControl "180+2"]
[Date "2023.03.28"]
[WhiteClock "0:00:10"]
[BlackClock "0:00:07"]

1. e4 {[%clk 0:02:57]}  c5 {[%clk 0:03:00]} 2. Nf3 {[%clk 0:02:57]}  d6 {[%clk 0:03:00]} 3. d4 {[%clk 0:02:57]}  cxd4 {[%clk 0:03:01]} 4. Nxd4 {[%clk 0:02:58]}  Nf6 {[%clk 0:03:01]} 5. Nc3 {[%clk 0:02:58]}  a6 {[%clk 0:03:02]} 6. h3 {[%clk 0:02:59]}  e6 {[%clk 0:03:01]} 7. g4 {[%clk 0:02:59]}  h6 {[%clk 0:03:02]} 8. h4 {[%clk 0:02:47]}  b5 {[%clk 0:02:43]} 9. a3 {[%clk 0:02:43]}  Bb7 {[%clk 0:02:42]} 10. Bg2 {[%clk 0:02:43]}  d5 {[%clk 0:02:33]} 11. exd5 {[%clk 0:02:19]}  Nxd5 {[%clk 0:02:34]} 12. Nb3 {[%clk 0:02:20]}  Be7 {[%clk 0:02:22]} 13. Nxd5 {[%clk 0:02:20]}  Bxd5 {[%clk 0:02:23]} 14. Bxd5 {[%clk 0:02:20]}  exd5 {[%clk 0:02:24]} 15. Be3 {[%clk 0:02:07]}  Bxh4 {[%clk 0:02:15]} 16. Rxh4 {[%clk 0:01:53]}  Qxh4 {[%clk 0:02:13]} 17. Qxd5 {[%clk 0:01:53]}  Qxg4 {[%clk 0:01:37]} 18. Qxa8 {[%clk 0:01:53]}  O-O {[%clk 0:01:37]} 19. Qd5 {[%clk 0:01:25]}  Rc8 {[%clk 0:01:20]} 20. Qd1 {[%clk 0:00:58]}  Qg1+ {[%clk 0:01:15]} 21. Kd2 {[%clk 0:00:54]}  Qg6 {[%clk 0:01:10]} 22. c3 {[%clk 0:00:51]}  Nc6 {[%clk 0:01:00]} 23. Qc2 {[%clk 0:00:49]}  Qd6+ {[%clk 0:00:37]} 24. Nd4 {[%clk 0:00:48]}  b4 {[%clk 0:00:21]} 25. axb4 {[%clk 0:00:44]}  Nxb4 {[%clk 0:00:20]} 26. Qf5 {[%clk 0:00:42]}  Rc5 {[%clk 0:00:17]} 27. Qe4 {[%clk 0:00:31]}  Nd5 {[%clk 0:00:13]} 28. Qe8+ {[%clk 0:00:29]}  Kh7 {[%clk 0:00:12]} 29. Qxf7 {[%clk 0:00:30]}  Nxe3 {[%clk 0:00:10]} 30. fxe3 {[%clk 0:00:24]}  Rg5 {[%clk 0:00:11]} 31. Rf1 {[%clk 0:00:20]}  Qb6 {[%clk 0:00:11]} 32. Kc2 {[%clk 0:00:19]}  a5 {[%clk 0:00:10]} 33. Kb1 {[%clk 0:00:16]}  a4 {[%clk 0:00:10]} 34. Ne6 {[%clk 0:00:16]}  Rg2 {[%clk 0:00:07]} 35. Rf2 {[%clk 0:00:10]}  Rxf2 {[%clk 0:00:07]} 36. Qxg7# {[%clk 0:00:10]} 1-0


[Site "https://www.chess.com"]

[Event "Titled Tuesday Blitz March 28 Early 2023"]
[White "Ibadov, Dashgyn"]
[Black "Molina, Roberto Junio Brito"]
[WhiteFideId "24107514"]
[BlackFideId "2109450"]
[WhiteElo "2208"]
[BlackElo "2376"]
[Result "0-1"]
[Round "06"]
[TimeControl "180+2"]
[Date "2023.03.28"]
[WhiteClock "0:00:13"]
[BlackClock "0:02:05"]

1. d4 {[%clk 0:03:00]}  d5 {[%clk 0:03:00]} 2. Nf3 {[%clk 0:03:00]}  Nf6 {[%clk 0:02:59]} 3. Bf4 {[%clk 0:02:59]}  c5 {[%clk 0:02:59]} 4. e3 {[%clk 0:02:59]}  Nc6 {[%clk 0:02:59]} 5. Nbd2 {[%clk 0:02:57]}  Qb6 {[%clk 0:02:54]} 6. dxc5 {[%clk 0:02:56]}  Qxb2 {[%clk 0:02:53]} 7. Rb1 {[%clk 0:02:56]}  Qc3 {[%clk 0:02:52]} 8. Bb5 {[%clk 0:02:56]}  Bd7 {[%clk 0:02:43]} 9. O-O {[%clk 0:02:45]}  e6 {[%clk 0:02:40]} 10. Ne5 {[%clk 0:02:26]}  Nxe5 {[%clk 0:02:33]} 11. Rb3 {[%clk 0:01:45]}  Qa5 {[%clk 0:02:31]} 12. Bxe5 {[%clk 0:01:39]}  Bxb5 {[%clk 0:02:30]} 13. Bxf6 {[%clk 0:01:20]}  gxf6 {[%clk 0:02:30]} 14. c4 {[%clk 0:01:10]}  Ba4 {[%clk 0:02:25]} 15. cxd5 {[%clk 0:01:07]}  Bxb3 {[%clk 0:02:13]} 16. Nxb3 {[%clk 0:01:05]}  Qd8 {[%clk 0:02:12]} 17. e4 {[%clk 0:00:56]}  Bg7 {[%clk 0:02:09]} 18. Qh5 {[%clk 0:00:39]}  O-O {[%clk 0:02:07]} 19. Rd1 {[%clk 0:00:38]}  f5 {[%clk 0:02:06]} 20. dxe6 {[%clk 0:00:26]}  Qf6 {[%clk 0:02:06]} 21. exf5 {[%clk 0:00:13]}  fxe6 {[%clk 0:02:05]} 0-1


[Site "https://www.chess.com"]